Cogmind - Beta 15 @@@ ROGUE MODE // 2025.05.29 @ 12:55:25 // AFD2019/Pay2Buy Player: ASS BUSTER Result: Destroyed by Cetus Guard with Advanced KE Penetrator Performance ------------- Evolutions (4) 2000 Regions Visited (11) 2200 Robots Destroyed (172) 860 Value Destroyed (7810) 7810 Prototype IDs (25) 500 Alien Tech Used (0) 0 Bonus (3803) 3803 TOTAL SCORE: 17173 Bonus ------- High Alert Combat Kills 2572 Follower Combat Kills 768 Entered Garrisons 400 Used RIF Installer 500 Friendly Fire -437 Cogmind --------- Core Integrity 0/850 Matter 162/300 Energy 350/350 System Corruption 39% Temperature Cool (0) Movement Walking (120) Location -6/Cetus Parts ------- > --- POWER (1) -------- Enhanced Fission Core > --- PROPULSION (3) --- Enhanced Flexi-carbon Leg Enhanced Flexi-carbon Leg Enhanced Armored Leg (fused) > --- UTILITY (7) ------ Advanced Sensor Array Experimental Targeting Computer Improved Reaction Control System Remote Force Field Mapping Drone Bay (1/3) Mapping Drone Bay (0/3) > --- WEAPON (4) ------- Smartbomb Launcher Improved Plasma Cutter > --- INVENTORY (10) --- Airjet Cooled Aerolev Unit Relay Coupler [NC] (22) Relay Coupler [Sentry] (23) Beam Rifle Field Laser Improved Spread Laser Improved Heavy Laser Tri-rail Accelerator Peak State ------------ > --- POWER ------------ Enhanced Fission Core > --- PROPULSION ------- Enhanced Flexi-carbon Leg Enhanced Flexi-carbon Leg Enhanced Armored Leg > --- UTILITY ---------- Advanced Sensor Array Improved Transmission Jammer Advanced ECM Suite Improved Reaction Control System Remote Force Field Mini Drone Bay Mini Drone Bay > --- WEAPON ----------- Smartbomb Launcher Smartbomb Launcher > --- INVENTORY -------- Airjet Cooled Aerolev Unit Relay Coupler [NC] Relay Coupler [Sentry] Beam Rifle Field Laser Improved Spread Laser Improved Heavy Laser Tri-rail Accelerator [Rating: 94] Favorites ----------- Power Cold Fusion Reactor Engine Improved Ion Engine Power Core Enhanced Nuclear Core Reactor Cold Fusion Reactor Propulsion Enhanced Armored Leg Leg Enhanced Armored Leg Wheel Armored Huge Wheel Hover Unit Improved Airjet Flight Unit VTOL Module Utility Advanced Melee Analysis Suite Device Force Field Storage Energy Well Processor Advanced Melee Analysis Suite Hackware Relay Coupler [NC] Protection Improved Heavy Armor Plating Weapon Phasing Sabre Energy Gun Advanced Plasma Rifle Ballistic Gun Battle Rifle Ballistic Cannon Advanced Assault Cannon Launcher Heavy Missile Launcher Special Weapon Remote Datajack Slashing Weapon Phasing Sabre Special Melee Weapon Improved Datajack Build | -11 -10 -9 -9 -8 -7 -7 -7 -7 -6 -6 -6 ------- Run | Yrd Mat Mat Min Mat Fac Gar Fac Gar Fac Ext Cet Slots Evolved 8 | . . 2 . 2 2 . . . 2 . . Power . | . . . . . . . . . . . . Propulsion 1 | . . . . . . . . . 1 . . Utility 5 | . . 1 . 2 2 . . . . . . Weapon 2 | . . 1 . . . . . . 1 . . Parts Attached 16 | . . . . . . 3 . 7 2 4 . Power 1 | . . . . . . . . . . 1 . Engine . | . . . . . . . . . . . . Core 1 | . . . . . . . . . . 1 . Reactor . | . . . . . . . . . . . . Propulsion . | . . . . . . . . . . . . Treads . | . . . . . . . . . . . . Leg . | . . . . . . . . . . . . Wheel . | . . . . . . . . . . . . Hover . | . . . . . . . . . . . . Flight . | . . . . . . . . . . . . Utility 8 | . . . . . . 3 . 5 . . . Device 1 | . . . . . . . . 1 . . . Storage . | . . . . . . . . . . . . Processor . | . . . . . . . . . . . . Hackware 7 | . . . . . . 3 . 4 . . . Protection . | . . . . . . . . . . . . Artifact . | . . . . . . . . . . . . Weapon 7 | . . . . . . . . 2 2 3 . Energy Gun 1 | . . . . . . . . . 1 . . Energy Cannon . | . . . . . . . . . . . . Ballistic Gun . | . . . . . . . . . . . . Ballistic Cannon 3 | . . . . . . . . 2 . 1 . Launcher 1 | . . . . . . . . . . 1 . Special Weapon . | . . . . . . . . . . . . Impact Weapon . | . . . . . . . . . . . . Slashing Weapon 2 | . . . . . . . . . 1 1 . Piercing Weapon . | . . . . . . . . . . . . Special Melee Weapon . | . . . . . . . . . . . . Unidentified Prototypes . | . . . . . . . . . . . . Parts Lost 76 | . 6 8 . 1 . 11 1 3 42 4 . Power 9 | . 1 1 . . . 1 . . 6 . . Propulsion 10 | . 2 1 . . . 1 . . 6 . . Utility 32 | . 1 1 . . . 3 . 1 23 3 . Weapon 25 | . 2 5 . 1 . 6 1 2 7 1 . Highest Loss Streak 10 | . 4 4 . 1 . 6 1 2 10 3 . To Critical Strikes 1 | . 1 . . . . . . . . . . Average Backups 7 | . . 1 1 1 1 7 10 9 9 8 9 Power . | . . . . . . . . . . . . Propulsion 1 | . . . . . . 1 2 2 2 2 2 Utility 1 | . . . . . . . 2 1 2 2 2 Weapon 4 | . . 1 1 1 1 5 6 5 5 4 5 Tool/Special . | . . . . . . . . . . . . Unused Backups 10 | . . . . . . 1 . . . . 9 Power . | . . . . . . . . . . . . Propulsion 3 | . . . . . . 1 . . . . 2 Utility 2 | . . . . . . . . . . . 2 Weapon 5 | . . . . . . . . . . . 5 Tool/Special . | . . . . . . . . . . . . Average Slot Usage (%) 82 | . 68 86 44 34 23 77 84 85 88 90 81 Engine 2 | . 12 9 . . . 1 . . . . . Core 2 | . . . . . . . . . 5 6 6 Reactor 2 | . . . . . . 4 7 7 . . . Leg 9 | . . . . . . 9 15 . 12 19 20 Hover 1 | . . . . . . 1 . . 4 . . Flight 3 | . 20 20 11 9 7 . . . . . . Device 15 | . 12 17 11 9 7 18 7 14 9 30 34 Storage 2 | . . . . . . 5 7 7 . . . Processor 10 | . . 10 11 9 7 6 . . 23 15 6 Hackware 7 | . . . . . . 3 23 26 5 . . Ballistic Cannon 3 | . . . . . . 11 2 8 1 . . Launcher 2 | . . 16 11 7 . . 4 5 . 3 6 Special Weapon 6 | . 20 12 . . . 4 7 4 3 3 6 Slashing Weapon 6 | . . . . . . 1 . . 16 9 . Peak Build Rating 94 | 12 12 29 13 13 10 69 49 56 92 94 90 Average Rating 58 | 9 9 26 13 12 10 54 48 54 76 87 84 On Entrance 30 | . 12 . 13 13 10 10 49 49 56 58 90 Naked Turns 54 | . 50 4 . . . . . . . . . Heaviest Build 59 | 13 13 24 6 6 . 59 35 44 46 58 41 Greatest Support 76 | 8 8 19 14 14 14 30 30 30 68 76 76 Greatest Overweight (x) 2 | 1 2 1 . . . 2 1 1 1 . . Average Overweight (x) . | . 1 . . . . . 1 1 . . . Largest Inventory Capacity 10 | 10 10 10 10 10 10 10 10 10 10 10 10 Average Capacity 10 | 10 10 10 10 10 10 10 10 10 10 10 10 Most Carried 10 | . 1 1 1 1 1 10 10 10 10 10 10 Average Carried 7 | . . 1 1 1 1 8 10 9 9 9 10 Final Capacity 10 | 10 10 10 10 10 10 10 10 10 10 10 10 Final Carried 10 | . 1 1 1 1 1 10 10 9 9 10 10 Class Distribution -------------------- 23% | Mutant 21% | Gladiator 14% | Bothacker-Mutant 11% | Bothacker-Tank 8% | Tank 7% | Derelict-Gladiator 7% | Infiltrator-Tank Dominant Class ---------------- Mutant | -10/Materials Pyromaniac-Sprinter | -9/Materials Mutant | -9/Mines Mutant | -8/Materials Mutant | -7/Factory Mutant | -7/Garrison Bothacker-Mutant | -7/Factory Bothacker-Tank | -7/Garrison Gladiator | -6/Factory Infiltrator-Tank | -6/Extension Tank | -6/Cetus Resources | -11 -10 -9 -9 -8 -7 -7 -7 -7 -6 -6 -6 ----------- Run | Yrd Mat Mat Min Mat Fac Gar Fac Gar Fac Ext Cet Matter Collected 3174 | 76 140 . 13 . . 590 169 716 772 698 . Remotely . | . . . . . . . . . . . . Salvage Created 5463 | 76 233 146 77 . . 829 235 583 2458 826 . Parts . | . . . . . . . . . . . . Haulers Intercepted . | . . . . . . . . . . . . Recyclers Shooed . | . . . . . . . . . . . . Parts Field Recycled . | . . . . . . . . . . . . Retrieved Matter . | . . . . . . . . . . . . Parts Self-Destructed . | . . . . . . . . . . . . Prevented . | . . . . . . . . . . . . Kills | -11 -10 -9 -9 -8 -7 -7 -7 -7 -6 -6 -6 ------- Run | Yrd Mat Mat Min Mat Fac Gar Fac Gar Fac Ext Cet Combat Hostiles Destroyed 149 | . 11 9 2 . . 27 9 23 46 22 . Melee 38 | . . . . . . . . . 34 4 . Guns 11 | . 5 . . . . 5 . . 1 . . Cannons 41 | . 5 1 . . . 20 . 13 . 2 . AOE 56 | . . 8 2 . . . 9 10 11 16 . Classes Destroyed 18 | 2 3 1 . . . 2 2 1 5 2 . Worker 4 | . . . . . . . 2 . 2 . . Builder 7 | . . . . . . . 2 . 2 3 . Tunneler 3 | 1 . . 1 . . . . . 1 . . Recycler 1 | 1 . . . . . . . . . . . Mechanic 2 | . . . . . . . . . 2 . . Operator 3 | . 1 . . . . . . . 1 1 . Drone 3 | . . . . . . . . . . 2 1 Watcher 3 | . . . . . . . . . 2 1 . Swarmer 36 | . 6 3 . . . 10 6 7 4 . . Saboteur 3 | . . . . . . . . . 3 . . Grunt 70 | . 5 4 2 . . 13 . 10 22 14 . Brawler 3 | . . . . . . . . . 2 1 . Duelist 6 | . . . . . . . . 2 2 2 . Protector 1 | . . . . . . . . . . 1 . Sentry 14 | . . 2 . . . 2 . 1 5 4 . Hunter 8 | . . . . . . 1 2 . 5 . . Programmer 6 | . . . . . . 1 1 2 2 . . Heavy 1 | . . . . . . . . . 1 . . Thug 1 | . . . . . . . . 1 . . . Best Kill Streak 12 | 2 6 4 3 . . 7 3 7 12 8 . Combat Bots Only 12 | . 6 4 2 . . 7 3 7 12 7 . Max Kills in Single Turn 4 | 1 2 4 2 . . 2 3 3 2 2 1 Gunslinging 1 | . 1 . . . . . . . . . . Exploded 4 | . . 4 2 . . . 3 3 2 2 . Melee 1 | . . . . . . . . . 1 1 . Uniques/NPCs Destroyed . | . . . . . . . . . . . . Combat | -11 -10 -9 -9 -8 -7 -7 -7 -7 -6 -6 -6 -------- Run | Yrd Mat Mat Min Mat Fac Gar Fac Gar Fac Ext Cet Hostile Shots Fired 1293 | . 60 132 1 18 . 373 60 94 481 68 6 Missed 494 | . 17 62 . 11 . 113 22 24 207 37 1 Hits 799 | . 43 70 1 7 . 260 38 70 274 31 5 Melee 16 | . . . . . . . . . 16 . . Projectile 783 | . 43 70 1 7 . 260 38 70 258 31 5 Critical Strikes 18 | . 2 . . . . 2 . . 13 . 1 Part Disruptions 1 | . . . . . . . . . 1 . . Damage Taken 10175 | . 434 755 30 59 . 2573 212 496 5080 408 128 Core 1957 | . 152 251 15 26 . 525 23 94 760 88 23 Absorbed by Shields 1455 | . . . . . . 575 234 444 118 84 . Ignored by Resistances 404 | . . . . . . 327 . . 77 . . Core Remaining (%) 55 | 100 39 . 33 95 . . . 8 . . . Volleys Fired 323 | 4 36 18 1 . . 75 14 64 46 60 5 Largest 3 | 2 2 3 1 . . 3 1 2 1 1 1 Hottest 300 | 200 200 240 36 . . 300 40 91 80 60 46 Shots Fired 431 | 8 58 29 1 . . 138 14 75 46 58 4 Gun 49 | . 16 . . . . 21 . . 12 . . Cannon 199 | . . . . . . 104 2 59 2 32 . Launcher 91 | . . 15 1 . . . 10 11 25 25 4 Special 92 | 8 42 14 . . . 13 2 5 7 1 . Kinetic 215 | . 16 . . . . 104 2 59 2 32 . Thermal 95 | 8 42 14 . . . 30 . . . 1 . Explosive 91 | . . 15 1 . . . 10 11 25 25 4 Electromagnetic 12 | . . . . . . . . . 12 . . Robot Hit Streak 13 | 6 8 8 9 . . 8 5 10 6 11 13 Robot Miss Streak 8 | 1 2 1 . . . 6 2 8 3 . . Penetration Max 1 | . . . . . . . . . . 1 . Secondary Targets 2 | . 2 . . . . . . . . . . Max Gunslinging Chain 1 | . 1 . . . . . . . . . . Shots Hit Robots 308 | 6 21 15 1 . . 62 7 42 134 18 2 Core Hits 266 | 2 15 15 3 . . 35 15 37 82 53 9 Critical Kills . | . . . . . . . . . . . . Critical Parts Destroyed . | . . . . . . . . . . . . Critical Strikes 14 | 1 3 2 . . . 6 . 1 . 1 . Burn 10 | 1 3 2 . . . 4 . . . . . Blast 4 | . . . . . . 2 . 1 . 1 . Melee Attacks 164 | . . . . . . . . . 139 25 . Impact . | . . . . . . . . . . . . Slashing 164 | . . . . . . . . . 139 25 . Piercing . | . . . . . . . . . . . . Sneak Attacks 4 | . . . . . . . . . 2 2 . Combat Hostiles . | . . . . . . . . . . . . Follow-up Attacks 32 | . . . . . . . . . 29 3 . Damage Inflicted 19244 | 65 289 1044 146 . . 1919 931 2452 7431 4432 535 Guns 718 | . 106 . . . . 476 . . 136 . . Cannons 3314 | . . . . . . 1400 54 1319 29 512 . Explosions 9080 | . . 946 114 . . . 877 1133 2320 3155 535 Melee 5711 | . . . . . . . . . 4946 765 . Ramming 57 | . 2 7 32 . . 16 . . . . . Kinetic 3420 | . 106 . . . . 1400 54 1319 29 512 . Thermal 1469 | 65 181 594 . . . 503 126 . . . . Explosive 8451 | . . 443 114 . . . 751 1133 2320 3155 535 Electromagnetic 136 | . . . . . . . . . 136 . . Impact . | . . . . . . . . . . . . Slashing 5711 | . . . . . . . . . 4946 765 . Piercing . | . . . . . . . . . . . . Highest Corruption 39 | . 1 2 2 . . . 1 2 29 39 39 Average Corruption 14 | . 1 2 2 . . . 1 1 10 34 39 Corruption Purged . | . . . . . . . . . . . . Corruption Blocked 1 | . . . . . . 1 . . . . . Effects 114 | . . 2 . . . . . 11 44 53 4 Message Errors 29 | . . . . . . . . 3 12 13 1 Matter Fused 21 | . . . . . . . . 1 9 11 . Heat Flow Errors 14 | . . 1 . . . . . 3 1 9 . Energy Discharges 14 | . . 1 . . . . . 3 3 7 . Parts Rejected 2 | . . . . . . . . . 1 1 . Parts Fused 3 | . . . . . . . . . 2 1 . Data Loss (minor) 15 | . . . . . . . . 1 8 4 2 Data Loss (major) 8 | . . . . . . . . . 6 2 . Alerts 1 | . . . . . . . . . . 1 . Misdirections 4 | . . . . . . . . . 2 2 . Weapon Failures 3 | . . . . . . . . . . 2 1 Overload Shots . | . . . . . . . . . . . . Overflow Damage 737 | . . 78 . . . 10 54 61 284 208 42 Projectiles 69 | . . . . . . 10 . 59 . . . Explosions 324 | . . 78 . . . . 54 2 23 125 42 Melee 344 | . . . . . . . . . 261 83 . Knockbacks 27 | . . . . . . 16 . 11 . . . Impact . | . . . . . . . . . . . . Kinetic 24 | . . . . . . 14 . 10 . . . Secondary 3 | . . . . . . 2 . 1 . . . Self-Inflicted Damage 72 | . 1 3 16 . . . 52 . . . . Shots 3 | . . . . . . . 3 . . . . Rammed 8 | . 1 3 4 . . . . . . . . Targets Rammed 11 | . 1 3 4 . . 3 . . . . . Kicked 3 | . . . . . . 3 . . . . . Crushed . | . . . . . . . . . . . . Highest Temperature 413 | 119 15 359 . . . 413 . 224 267 252 . Average Temperature 96 | 42 5 121 . . . 156 . 95 49 80 . Received Heat Transfer 2434 | . 114 210 9 . . 715 15 179 1141 51 . Effects 14 | . . 5 . . . 7 . . 1 1 . Shutdowns 1 | . . 1 . . . . . . . . . Energy Bleed 3 | . . . . . . 1 . . 1 1 . Interference 10 | . . 4 . . . 6 . . . . . Siege Activations . | . . . . . . . . . . . . Martial Activations . | . . . . . . . . . . . . Shielding Activations . | . . . . . . . . . . . . Robots Disrupted 1 | . 1 . . . . . . . . . . Combat Hostiles 1 | . 1 . . . . . . . . . . Robots Corrupted . | . . . . . . . . . . . . Combat Hostiles . | . . . . . . . . . . . . Parts Fried . | . . . . . . . . . . . . Impact Corruptions 1 | . . . . . . 1 . . . . . Robots Melted 4 | 1 1 . . . . 2 . . . . . Combat Hostiles 3 | . 1 . . . . 2 . . . . . Parts Melted . | . . . . . . . . . . . . Heat Transferred 5180 | 640 1760 1260 . . . 1420 100 . . . . Parts Sabotaged 6 | . . . . . . . . . 6 . . Parts Stolen . | . . . . . . . . . . . . Parts Stripped . | . . . . . . . . . . . . Power Chain Reactions . | . . . . . . . . . . . . Alert | -11 -10 -9 -9 -8 -7 -7 -7 -7 -6 -6 -6 ------- Run | Yrd Mat Mat Min Mat Fac Gar Fac Gar Fac Ext Cet Maximum Alert Level 4 | . . 1 1 . . 2 2 4 4 4 2 Low Security (%) 22 | 100 100 59 36 100 100 37 . . . . . Level 1 12 | . . 40 64 . . 13 79 11 . . . Level 2 24 | . . . . . . 49 20 29 11 47 100 Level 3 21 | . . . . . . . . 30 39 41 . Level 4 19 | . . . . . . . . 28 49 10 . Level 5 . | . . . . . . . . . . . . High Security . | . . . . . . . . . . . . Max Security . | . . . . . . . . . . . . Peak Influence 1482 | 5 110 394 206 76 20 679 504 1279 1482 1253 696 Initial 714 | . . 32 118 76 20 9 356 336 671 714 696 Average 632 | 1 16 170 186 67 17 357 344 775 1104 795 670 Influence Increases 6271 | 10 285 492 88 . 4 769 432 993 1876 1300 22 Destroy 0b10 Robot/C 3400 | . 220 180 40 . . 540 180 620 980 640 . Destroy 0b10 Robot/NC 125 | 10 5 . 5 . . . 20 . 55 30 . Destroy Leader 498 | . 40 30 10 . . 40 50 40 196 92 . Allied During Kill 202 | . . . . . . . . 36 57 109 . Successful Hack 50 | . 5 . . . 4 14 . . . 27 . Disable Machine 495 | . . 75 30 . . . 120 30 120 120 . Anti-Garrison Action 250 | . . . . . . 100 . 150 . . . Destroy Structure 621 | . . 72 3 . . . 62 117 168 177 22 Lose Combat Pursuer 630 | . 15 135 . . . 75 . . 300 105 . Influence Decreases 5623 | 10 207 266 196 150 36 104 631 194 1696 1515 618 Entered New Map 2751 | . . 46 186 120 26 5 323 144 608 745 548 Time Decay 1653 | 10 157 140 10 20 10 . 278 . 598 410 20 Lost Part 739 | . 50 80 . 10 . 99 10 30 420 40 . Lost Ally 480 | . . . . . . . 20 20 70 320 50 Squads Dispatched 34 | . 7 3 . 1 . . 5 . 15 3 . Investigation 8 | . 3 2 . . . . 2 . 1 . . Extermination 3 | . . . . . . . . . 3 . . Reinforcement 16 | . 4 1 . 1 . . 3 . 5 2 . Assault 7 | . . . . . . . . . 6 1 . Garrison . | . . . . . . . . . . . . Intercept . | . . . . . . . . . . . . Searches Triggered . | . . . . . . . . . . . . Construction Impeded 2 | . . 1 . . . . . . 1 . . Haulers Reinforced 1 | . . . . . . . 1 . . . . Active Scanning Responses . | . . . . . . . . . . . . Cargo Convoy Interrupts . | . . . . . . . . . . . . Stealth | -11 -10 -9 -9 -8 -7 -7 -7 -7 -6 -6 -6 --------- Run | Yrd Mat Mat Min Mat Fac Gar Fac Gar Fac Ext Cet Distress Signals 10 | . 3 1 . 1 . . 1 . 1 2 1 Communications Jammed 4 | . . . . . . . . . 4 . . Distress Signals 4 | . . . . . . . . . 4 . . Times Spotted 271 | . 15 29 2 10 . 31 12 34 95 38 5 Peak Tracking Total 13 | . 6 10 2 9 . 9 3 5 13 8 5 Tactical Retreats 22 | . 1 3 . . . 3 . . 12 3 . Traps | -11 -10 -9 -9 -8 -7 -7 -7 -7 -6 -6 -6 ------- Run | Yrd Mat Mat Min Mat Fac Gar Fac Gar Fac Ext Cet Traps Triggered 23 | . 2 1 . . . 8 1 7 3 1 . Indirectly . | . . . . . . . . . . . . Trap Hack Attempts . | . . . . . . . . . . . . Triggered . | . . . . . . . . . . . . Disarmed . | . . . . . . . . . . . . Reprogrammed . | . . . . . . . . . . . . Reused . | . . . . . . . . . . . . Traps Extracted . | . . . . . . . . . . . . Installed . | . . . . . . . . . . . . Triggered . | . . . . . . . . . . . . Machines | -11 -10 -9 -9 -8 -7 -7 -7 -7 -6 -6 -6 ---------- Run | Yrd Mat Mat Min Mat Fac Gar Fac Gar Fac Ext Cet Machines Disabled 37 | . . 5 2 . . 2 8 4 8 8 . Max in Single Turn 4 | . . 2 2 . . 1 4 1 3 1 . Garrison Relay 4 | . . . . . . 2 . 2 . . . Energy Cycler 1 | . . . . . . . . . . 1 . Machines Repaired . | . . . . . . . . . . . . Machines Dismantled 4 | . . . . . . . . . . 4 . Machines Sabotaged . | . . . . . . . . . . . . Overloaded Fab Kills . | . . . . . . . . . . . . Hacking | -11 -10 -9 -9 -8 -7 -7 -7 -7 -6 -6 -6 --------- Run | Yrd Mat Mat Min Mat Fac Gar Fac Gar Fac Ext Cet Machines Accessed 23 | . 3 2 . . 1 1 4 1 4 7 . Terminals 21 | . 3 2 . . . 1 3 1 4 7 . Fabricators . | . . . . . . . . . . . . Repair Stations . | . . . . . . . . . . . . Recycling Units . | . . . . . . . . . . . . Scanalyzers . | . . . . . . . . . . . . Garrison Access 2 | . . . . . 1 . 1 . . . . Total Hacks 39 | . 4 3 . . 1 2 8 3 7 11 . Successful 12 | . 2 . . . 1 1 3 1 . 4 . Failed 27 | . 2 3 . . . 1 5 2 7 7 . Catastrophic 10 | . 1 1 . . . . . 1 4 3 . Database Lockouts . | . . . . . . . . . . . . Manual 13 | . 1 3 . . . . . . 7 2 . Terminals 37 | . 4 3 . . . 2 7 3 7 11 . Fabricators . | . . . . . . . . . . . . Repair Stations . | . . . . . . . . . . . . Recycling Units . | . . . . . . . . . . . . Scanalyzers . | . . . . . . . . . . . . Garrison Access 2 | . . . . . 1 . 1 . . . . Terminal Hacks 10 | . 2 . . . . 1 2 1 . 4 . Record 1 | . . . . . . . 1 . . . . Robot Analysis 1 | . 1 . . . . . . . . . . Prototype ID Bank 2 | . 1 . . . . . . . . 1 . Open Door 4 | . . . . . . . . 1 . 3 . Open DSF 1 | . . . . . . . 1 . . . . Emergency Access Points 1 | . . . . . . 1 . . . . . Fabricator Hacks . | . . . . . . . . . . . . Repair Station Hacks . | . . . . . . . . . . . . Recycling Unit Hacks . | . . . . . . . . . . . . Scanalyzer . | . . . . . . . . . . . . Garrison Access Hacks 2 | . . . . . 1 . 1 . . . . Unlock Access 2 | . . . . . 1 . 1 . . . . Unauthorized Hacks . | . . . . . . . . . . . . Terminals . | . . . . . . . . . . . . Fabricators . | . . . . . . . . . . . . Repair Stations . | . . . . . . . . . . . . Recycling Units . | . . . . . . . . . . . . Scanalyzers . | . . . . . . . . . . . . Garrison Access . | . . . . . . . . . . . . Data Cores Recovered . | . . . . . . . . . . . . Used . | . . . . . . . . . . . . Hacking Detections 17 | . 2 2 . . . 1 2 1 4 5 . Full Trace Events 5 | . 1 1 . . . . 1 1 1 . . Feedback Events 1 | . . . . . . . . 1 . . . Corruption 1 | . . . . . . . . 1 . . . Feedback Blocked . | . . . . . . . . . . . . Robot Schematics Acquired . | . . . . . . . . . . . . Robots Built . | . . . . . . . . . . . . Authchips . | . . . . . . . . . . . . Time . | . . . . . . . . . . . . Total Robot Build Rating . | . . . . . . . . . . . . Part Schematics Acquired . | . . . . . . . . . . . . Parts Built . | . . . . . . . . . . . . Authchips . | . . . . . . . . . . . . Time . | . . . . . . . . . . . . Total Part Build Rating . | . . . . . . . . . . . . Parts Repaired . | . . . . . . . . . . . . Time . | . . . . . . . . . . . . Parts Recycled . | . . . . . . . . . . . . Recycled Matter . | . . . . . . . . . . . . Retrieved Matter . | . . . . . . . . . . . . Retrieved Components . | . . . . . . . . . . . . Parts Scanalyzed . | . . . . . . . . . . . . Part Schematics Acquired . | . . . . . . . . . . . . Parts Damaged . | . . . . . . . . . . . . Bothacking | -11 -10 -9 -9 -8 -7 -7 -7 -7 -6 -6 -6 ------------ Run | Yrd Mat Mat Min Mat Fac Gar Fac Gar Fac Ext Cet Used RIF Installer 1 | . . . . . . 1 . . . . . Robots Hacked 10 | . . . . . . . 1 3 6 . . Non-combat 2 | . . . . . . . . . 2 . . Combat 8 | . . . . . . . 1 3 4 . . Robot Hacks Applied 10 | . . . . . . . 1 3 6 . . parse_system 1 | . . . . . . . . . 1 . . start_evac 1 | . . . . . . . . . 1 . . scatter_targeting 1 | . . . . . . . . . 1 . . amplify_resonance 1 | . . . . . . . . 1 . . . streamctrl_high 1 | . . . . . . . . 1 . . . formatsys_high 5 | . . . . . . . 1 1 3 . . Relay Couplers Released 18 | . . . . . . 8 3 7 . . . Machine Destruction 15 | . . . . . . 8 . 7 . . . Programmers 3 | . . . . . . . 3 . . . . Attached 7 | . . . . . . 3 . 4 . . . Fabnet Peak Effective % . | . . . . . . . . . . . . Robots Rewired . | . . . . . . . . . . . . Allies Hacked . | . . . . . . . . . . . . Hacks Repelled . | . . . . . . . . . . . . Allies | -11 -10 -9 -9 -8 -7 -7 -7 -7 -6 -6 -6 -------- Run | Yrd Mat Mat Min Mat Fac Gar Fac Gar Fac Ext Cet Total Allies 18 | . . . . . . . 1 4 3 10 . Largest Group 5 | . . . . . . . 1 2 4 5 . Highest-Rated Group 280 | . . . . . . . 32 70 141 280 . Highest-Rated Ally 159 | . . . . . . . 32 39 47 159 . Total Orders 35 | . . . . . . . . . . 33 2 FOLLOW 1 | . . . . . . . . . . 1 . EXPLORE 34 | . . . . . . . . . . 32 2 Ally Attacks 177 | . . . . . . . 2 44 25 106 . Total Damage 2735 | . . . . . . . 48 475 269 1943 . Kills 24 | . . . . . . . . 8 4 12 . Allies Corrupted . | . . . . . . . . . . . . Allies Melted . | . . . . . . . . . . . . Intel | -11 -10 -9 -9 -8 -7 -7 -7 -7 -6 -6 -6 ------- Run | Yrd Mat Mat Min Mat Fac Gar Fac Gar Fac Ext Cet Active Infowar (turns) 1676 | . . 110 . . . 52 . 586 328 556 44 Sensors 1243 | . . 110 . . . . . 586 . 503 44 Cloaking 51 | . . . . . . 51 . . . . . Jamming 910 | . . . . . . 20 . . 328 556 6 ECM 9 | . . . . . . 5 . . . 4 . Robot Analysis Total 1 | . 1 . . . . . . . . . . Derelict Logs Recovered . | . . . . . . . . . . . . Drone Launches 52 | . . . . . . . . . . 37 15 Drone Recoveries 22 | . . . . . . . . . . 17 5 Exploration | -11 -10 -9 -9 -8 -7 -7 -7 -7 -6 -6 -6 ------------- Run | Yrd Mat Mat Min Mat Fac Gar Fac Gar Fac Ext Cet Turns Passed 6600 | 47 761 284 25 40 27 1144 605 712 1916 995 44 Spaces Moved 3974 | 41 497 306 38 110 77 542 321 405 1149 474 14 Core 255 | 4 99 42 35 . . 75 . . . . . Treads . | . . . . . . . . . . . . Legs 1822 | . . . . . . 314 321 4 695 474 14 Wheels 511 | . . . . . . . . 401 110 . . Hover 470 | . . . . . . 141 . . 329 . . Flight 916 | 37 398 264 3 110 77 12 . . 15 . . Fastest Speed 32 | 32 35 32 35 35 35 35 180 115 42 120 120 Average Speed 114 | 66 116 58 48 35 35 141 180 115 110 120 120 Slowest Speed 195 | 112 195 105 50 35 35 180 180 180 190 120 120 Overloaded Moves . | . . . . . . . . . . . . Propulsion Burnouts . | . . . . . . . . . . . . Robots Hopped 8 | 1 4 1 . 2 . . . . . . . Potential Cave-ins 9 | . . . . . . . . . . 9 . Cave-ins Triggered 1 | . . . . . . . . . . 1 . Exploration Rate (%) 31 | 4 75 33 13 19 1 49 13 41 26 83 22 Regions Visited 11 Branch Regions 3 Pre-discovered Areas . | . . . . . . . . . . . . Known Exits Taken 2 | . . . . . 1 . 1 . . . . Unknown Exits Taken 7 | 1 1 1 1 1 . . . . 1 1 . Scrap Searched . | . . . . . . . . . . . . Spaces Dug 20 | . . . . . . . 3 7 4 6 . Terrain Destroyed 913 | . . 85 3 . . . 62 111 201 388 63 Melee 5 | . . . . . . . . . 4 1 . Projectile 34 | . . . . . . . . 5 1 28 . AOE 874 | . . 85 3 . . . 62 106 196 359 63 Terrain Rammed . | . . . . . . . . . . . . Walls Destroyed . | . . . . . . . . . . . . Machines Disabled . | . . . . . . . . . . . . Actions | -11 -10 -9 -9 -8 -7 -7 -7 -7 -6 -6 -6 --------- Run | Yrd Mat Mat Min Mat Fac Gar Fac Gar Fac Ext Cet Total 5355 | 43 577 370 42 108 76 803 334 574 1602 786 40 Wait 694 | . 44 45 . 1 . 92 . 36 292 169 15 Move 3947 | 38 490 303 37 105 76 540 320 404 1148 472 14 Hop 6 | 1 2 1 . 2 . . . . . . . Pick Up 2 | . . . . . . 1 . 1 . . . Fast Attach 15 | . . . . . . 7 . 4 1 3 . Attach 4 | . . . . . . . . 2 1 1 . Detach 3 | . . . . . . 2 . . 1 . . Swap 2 | . . . . . . . . 1 . 1 . Drop 77 | . 4 . . . . 18 . 6 16 27 6 Fire 323 | 4 36 18 1 . . 75 14 64 46 60 5 Melee 115 | . . . . . . . . . 97 18 . Ram 8 | . 1 3 4 . . . . . . . . Kick 3 | . . . . . . 3 . . . . . Crush . | . . . . . . . . . . . . Escape Stasis 123 | . . . . . . 65 . 56 . 2 . Rewire . | . . . . . . . . . . . . Trap . | . . . . . . . . . . . . Miscellaneous 33 | . . . . . . . . . . 33 . Route ------- -11/Scrapyard -10/Materials (discovered 3 exits: *Mat x2 / [*Min]) -9/Materials -9/Mines -8/Materials -7/Factory -7/Garrison -7/Factory -7/Garrison -6/Factory -6/Extension (discovered 3 exits: [*Fac x2] / [*Cet]) -6/Cetus (discovered 1 exit: [*Fac]) History --------- Turn | Location | Event 3 | -11/Scrapyard | Discovered new exit (range 15) 48 | -11/Scrapyard | Entered Materials 49 | -10/Materials | Met a group of wandering Federalists 315 | -10/Materials | Build established: Mutant 341 | -10/Materials | Discovered new exit (range 4) 586 | -10/Materials | Discovered new exit (range 13) 764 | -10/Materials | Lost 4 parts (1p1n1u1w) 770 | -10/Materials | Core integrity fell below 50% 781 | -10/Materials | Discovered new exit (range 16) 809 | -10/Materials | Entered another Materials area 809 | -9/Materials | Evolved 2 slots: Utility x1, Weapon x1 924 | -9/Materials | Discovered new exit (range 14) 957 | -9/Materials | Lost 3 parts (3w) 1070 | -9/Materials | Core integrity fell below 50% 1093 | -9/Materials | Entered Mines 1115 | -9/Mines | Discovered new exit (range 3) 1117 | -9/Mines | Lost 4 parts (1p1n2w) 1118 | -9/Mines | Entered Materials 1118 | -8/Materials | Evolved 2 slots: Utility x2 1153 | -8/Materials | Discovered new exit (range 13) 1158 | -8/Materials | Entered Factory 1158 | -7/Factory | Evolved 2 slots: Utility x2 1185 | -7/Factory | Identified exit to Garrison 1185 | -7/Factory | Entered Garrison 1211 | -7/Garrison | Triggered checkpoint 1443 | -7/Garrison | Lost 6 parts (1n2u3w) 1443 | -7/Garrison | Garrison Relay disabled 1559 | -7/Garrison | Triggered checkpoint 1572 | -7/Garrison | Core integrity fell below 50% 1604 | -7/Garrison | Lost 4 parts (1p1u2w) 1648 | -7/Garrison | Destroyed 7 combat bots 1757 | -7/Garrison | Triggered checkpoint 1864 | -7/Garrison | Build established: Tank 1891 | -7/Garrison | Triggered checkpoint 1907 | -7/Garrison | Triggered checkpoint 2002 | -7/Garrison | Discovered new exit (range 12) 2073 | -7/Garrison | Triggered checkpoint 2130 | -7/Garrison | Installed Relay Interface Framework 2153 | -7/Garrison | Garrison Relay disabled 2329 | -7/Garrison | Entered Factory 2466 | -7/Factory | Build established: Bothacker-Mutant 2933 | -7/Factory | Identified exit to Garrison 2934 | -7/Factory | Entered Garrison 2972 | -7/Garrison | Triggered checkpoint 3014 | -7/Garrison | Garrison Relay disabled 3061 | -7/Garrison | Core integrity fell below 20% 3212 | -7/Garrison | Rescued a captive Derelict 3213 | -7/Garrison | Rescued a captive Derelict 3309 | -7/Garrison | Build established: Bothacker-Tank 3320 | -7/Garrison | Triggered checkpoint 3352 | -7/Garrison | Triggered checkpoint 3384 | -7/Garrison | P-60 Hacker assimilated allied S4-HZO(g) 3394 | -7/Garrison | Triggered checkpoint 3434 | -7/Garrison | Destroyed 7 combat bots 3439 | -7/Garrison | Triggered checkpoint 3473 | -7/Garrison | Spotted B-75 Beast 3500 | -7/Garrison | Triggered checkpoint 3519 | -7/Garrison | Discovered new exit (range 14) 3534 | -7/Garrison | Triggered checkpoint 3578 | -7/Garrison | Garrison Relay disabled 3646 | -7/Garrison | Entered Factory 3646 | -6/Factory | Accompanied by 1 ally 3646 | -6/Factory | Evolved 2 slots: Propulsion x1, Weapon x1 3961 | -6/Factory | Lost 4 allies 3996 | -6/Factory | First assault squad dispatched 4192 | -6/Factory | Lost 9 parts (1p2n4u2w) 4290 | -6/Factory | Lost 5 parts (1p2n2u) 4417 | -6/Factory | Lost 3 parts (3u) 4429 | -6/Factory | Build established: Gladiator 4679 | -6/Factory | Lost 4 parts (1p2u1w) 5013 | -6/Factory | Core integrity fell below 50% 5051 | -6/Factory | System corruption reached 10% 5170 | -6/Factory | Destroyed 12 combat bots 5172 | -6/Factory | Lost 10 parts (1p1n7u1w) 5366 | -6/Factory | Build established: Derelict-Gladiator 5541 | -6/Factory | Lost 4 parts (1p1n2u) 5544 | -6/Factory | Core integrity fell below 20% 5546 | -6/Factory | Discovered new exit (range 10) 5562 | -6/Factory | Entered Extension 5617 | -6/Extension | Rescued a captive Derelict 5759 | -6/Extension | Rescued a captive Derelict 5824 | -6/Extension | Rescued a captive Derelict 5848 | -6/Extension | Build established: Gladiator 5901 | -6/Extension | Rescued a captive Derelict 5989 | -6/Extension | Crushed by falling debris 5990 | -6/Extension | System corruption reached 30% 6017 | -6/Extension | Rescued a captive Derelict 6020 | -6/Extension | Lost 3 parts (3u) 6059 | -6/Extension | Lost 4 allies 6132 | -6/Extension | Rescued a captive Derelict 6132 | -6/Extension | Rescued a captive Derelict 6169 | -6/Extension | Rescued a captive Derelict 6210 | -6/Extension | Energy Cycler disabled 6210 | -6/Extension | Rescued a captive Derelict 6210 | -6/Extension | Rescued a captive Derelict 6210 | -6/Extension | Rescued a captive Derelict 6211 | -6/Extension | Rescued a captive Derelict 6220 | -6/Extension | Rescued A7 6262 | -6/Extension | First assault squad dispatched 6279 | -6/Extension | Discovered new exit (range 68) 6297 | -6/Extension | Build established: Infiltrator-Tank 6310 | -6/Extension | Discovered new exit (range 46) 6377 | -6/Extension | Lost 6 allies 6424 | -6/Extension | Discovered new exit (range 32) 6521 | -6/Extension | Destroyed 7 combat bots 6557 | -6/Extension | Entered Cetus 6570 | -6/Cetus | Spotted Cetus Guard 6571 | -6/Cetus | Spotted Cetus Guard 6581 | -6/Cetus | Discovered new exit (range 39) 6592 | -6/Cetus | Spotted Cetus Guard 6601 | -6/Cetus | Destroyed by Cetus Guard with Advanced KE Penetrator Last Messages --------------- 06582_ Mapping Drone released from Mapping Drone Bay. 06586_ Slug penetrates Wall. 06588_ Slug penetrates Cetus Guard. 06589_ Mapping Drone retrieved by Mapping Drone Bay (no repairs). 06590_ Destroyed Lgt. Ion Engine. 06590_ Mapping Drone destroyed. 06590_ Penetrated by Slug. 06592_ KKFMY,H2G01FYLTHZGOH 06597_ Slug penetrates Mapping Drone. 06597_ Mapping Drone destroyed. 06598_ Mapping Drone retrieved by Mapping Drone Bay (repair cost: 2). 06599_ Penetrated by Slug. 06599_ Slug penetrates Wall. 06601_ System corrupted: Smartbomb Launcher failed to launch. 06601_ Penetrated by Slug. Map ----- +----------------------------------------------------+ | ????????????????#?????# #??? | | ?????????????#????????# #?## | | ???????#???????????##?# #??? | | ????????????????#?????# #?#? | | ??????????????#?#?????# #??# | | ?????#?????#?##???#???# #?#? | | ??#?##??######????##??# #??? | | ###?####?#?###?###?#??# #??? | | ####?############???### #?## | | ######?#########?#?#### #?#? | | ##?#??#####?#######???# ##?# | | ####?#############??### #### | | ####?###?####?#####?### ##?# | | ##########??#######?### #?#? | | #?###################?# #??? | | ?#?#################### ##?? | | ####?########?######### #?#? | | ##########?###?######## #### | | #?#?################### #??# | | ###?###############?##" #### | | #################### ## ##?# | | #######?########### # ##?# | | ###############;; ## | | ## n n!n n Y | | ##!! % ! Y | | ## ! @ YY | | ?################# ## | | #######?############# ### | | ###################### #####?? | | ###?#####################?#### | | ############?#########?##??#?? | | #?############?#####??#?##???? | | ?##?#################?#?##?#?# | | ##################?####??##?#? | | ##########?#######?##??#?????# | | ##?########################?#? | | ######################????#?#? | | ############?######?##?????##? | | #####################????????? | | #####?#######?####?#?##??????? | | ?##?#########???####??????#?#? | | ??##?#???###?##??????????#???# | | ##???#??#??????????#????#????? | | ??#??????????????????????????? | | ?????????????????????????????? | | ?????????????????????????????? | | ?????????????????????????????? | | ?????????????????????????????? | | ?????????????????????????????? | | ?????????????????????????????? | +----------------------------------------------------+ Best States ------------- Heat Dissipation 47 Energy Generation 21 Energy Capacity 850 Matter Stores 300 Matter Capacity 300 Sight Range 16 Robot Scan Range 16 Terrain Scan Density 10 Jamming Range 14 Cloak Strength 2 Power Amplification 20 Additional Mass Support 9 Corruption Block 15 Armor Coverage 600 Resistance: KI 20 Resistance: TH 30 Resistance: EX 50 Phase Shifting 5 Evasion (%) 70 Targeting Accuracy 12 Melee Accuracy 32 Target Analysis 6 Core Analysis 6 Energy Filtering 50 Relay Coupler Types 4 Relay Coupler Value 96 Item Schematics ----------------- None Robot Schematics ------------------ None Fabricated ------------ Nothing Repaired ---------- Nothing Alien Tech Used ----------------- None Achievements -------------- Assimilation Complete Close Call Error 47 Infiltrator Release The Drones! Challenges ------------ None Cogshop Purchases (181) ------------------------- Flamer (699) Flamer (699) VTOL Module (1049) VTOL Module (1049) Cooling System (699) Imp. Ion Engine (699) Welding Torch (1008) Welding Torch (1008) Battle Rifle (613) Battle Rifle (613) Beam Rifle (531) Imp. VTOL Module (1582) Imp. VTOL Module (1582) Adv. Weight Redist. System (851) Imp. Sensor Array (851) Imp. Signal Interpreter (679) Enh. Flamer (1519) Enh. Flamer (1519) Enh. Flamer (1519) Lgt. Deuterium Engine (655) Missile Launcher (993) Missile Launcher (993) Missile Launcher (993) Lgt. Fission Core (915) Cold Fusion Reactor (1185) Biomechanical Wings (1676) Biomechanical Wings (1676) Plasma Flamer (1591) Plasma Flamer (1591) Plasma Flamer (1591) Cld. VTOL Module (1508) Cld. VTOL Module (1508) Xenon Bombardment Thruster (1508) Xenon Bombardment Thruster (1508) Gravmag Array (1191) Gravmag Array (1191) Adv. ECM Suite (833) Cloaking Device (926) Transmission Jammer (833) Energy Filter (833) F-cell Engine (884) Energy Well (Loot Box) Cld. Aerolev Unit (Loot Box) Airjet (Loot Box) Power Amplifier (Loot Box) Greatsword (Loot Box) Adv. Plasma Rifle (Loot Box) Imp. Corruption Screen (Loot Box) Imp. Spread Laser (Loot Box) Imp. Heavy Laser (Loot Box) Enh. Gauss Cannon (Loot Box) Field Laser (Loot Box) Adv. Thermal Shield (Loot Box) Hpw. Shock Rifle (Loot Box) Matter Compressor (Loot Box) Arm. Leg (Loot Box) EM Shield (Loot Box) Hvy. Plasma Cannon (Loot Box) Hardlight Generator (Loot Box) Cold Fusion Reactor (1155) Imp. VSS Leg (761) Imp. VSS Leg (761) Force Field (1498) Focal Shield (1498) Thermal Shield (1498) Adv. Assault Cannon (1002) Adv. Assault Cannon (1002) Adv. Assault Cannon (1002) Imp. Heavy Armor Plating (722) Imp. Datajack (529) Remote Datajack (1616) Hvy. Missile Launcher (858) Hvy. Flak Cannon (1366) Force Field (1674) Arm. Huge Wheel (827) Imp. Sensor Array (1339) Imp. Remote Datajack (1626) Mni. Smartbomb Launcher (2260) Mic. Fission Core (920) Nuclear Pulse Array (1551) Field Propulsion Drive (1551) Imp. Airjet (1252) Imp. Airjet (1252) Imp. Airjet (1252) Phase Shifter (1732) Imp. Transmission Jammer (1905) Neutrino Core (920) Imp. Remote Datajack (1896) Mic. Fission Core (1119) Phasing Sabre (1170) Phasing Sabre (1170) Phasing Sabre (1170) Imp. Gravmag System (2141) Imp. Gravmag System (2141) Imp. Gravmag System (2141) Imp. Reaction Control System (2121) Adv. Melee Analysis Suite (786) Adv. Melee Analysis Suite (786) Adv. Melee Analysis Suite (786) Adv. Melee Analysis Suite (786) Phase Shifter (2121) Imp. Reaction Control System (2121) Mic. Fission Core (1119) Imp. Gravmag System (2141) Neutrino Core (1292) Imp. Gravmag System (2805) Imp. Gravmag System (2805) Imp. Medium Armor Plating (593) Phase Shifter (2703) Enh. Armored Leg (948) Enh. Armored Leg (948) Enh. Armored Leg (948) Adv. Melee Analysis Suite (950) Imp. Target Analyzer (950) Core Analyzer (854) Adv. Melee Analysis Suite (950) Mic. Fission Core (1381) Power Sword (1339) Phasing Sabre (1472) Phasing Sabre (1472) Imp. Shock Absorption System (2795) Phase Shifter (2541) Phase Shifter (2541) Enh. Armored Leg (1196) Phasing Sabre (2019) Imp. Thermal Defense Suite (5591) Prc. Energy Filter (2795) Enh. Nuclear Core (1124) Phasing Sabre (1994) Phase Shifter (4698) Imp. Reaction Control System (4698) Adv. Melee Analysis Suite (1152) Adv. Melee Analysis Suite (1152) Adv. Melee Analysis Suite (1152) Adv. Melee Analysis Suite (1152) Imp. Reaction Control System (4698) Enh. Armored Leg (1197) Phase Shifter (4698) Imp. Reaction Control System (7732) Phase Shifter (7732) Enh. Flexi-carbon Leg (1508) Enh. Nuclear Core (1286) Enh. Flexi-carbon Leg (702) Enh. Flexi-carbon Leg (702) Power Sword (1758) Remote Force Field (6653) Imp. Reaction Control System (6049) Power Sword (2102) Tri-rail Accelerator (2703) Antimatter Cannon (908) Imp. Plasma Cutter (1010) Tri-rail Accelerator (3242) Enh. Gauss Cannon (1080) Tri-rail Accelerator (3242) Enh. Gauss Cannon (1080) Adv. ECM Suite (8771) Imp. Transmission Jammer (10720) Smartbomb Launcher (848) Smartbomb Launcher (848) Drone Bay (9746) Drone Bay (9746) Enh. Fission Core (1712) Imp. System Restoration Module (9746) Imp. Reaction Control System (9746) Adv. Signal Interpreter (1407) Adv. Sensor Array (9746) Mni. Drone Bay (27197) Mni. Drone Bay (27197) Imp. Plasma Cutter (946) Mni. Drone Bay (34493) Mni. Drone Bay (34493) Tri-rail Accelerator (4675) Exp. Targeting Computer (2599) Mni. Drone Bay (46781) Mni. Drone Bay (46781) Smartbomb Launcher (1112) Mapping Drone Bay (41028) Mapping Drone Bay (41028) Hvy. Riot Gun (678) Mapping Drone Bay (41028) Mapping Drone Bay (41028) Game ------ Seed AlertMicroProtection Manual? 0 Play Time 02:38:23 Cumulative 37.2 hours Start 2025.05.24 @ 19:23:45 End 2025.05.29 @ 12:55:25 Sessions 3 Manual Loads 0 Difficulty Rogue Special Mode AFD2019/Pay2Buy Game No. 9 Rogue 9 Adventurer 0 Explorer 0 Win Type - Total 1 Types 0/0/0/1/0/0/0/0/0/0 Lore% 36 Gallery% 29 Achievement% 48 Wizard Run 0 Options --------- Layout 0 ASCII 0 Keyboard 0 Movement Numpad Keybinds 0 Fullscreen 2 Font 14/SmallcapsGlow Map View 72x54 Zoom Use 79% Tactical HUD 1 Map Filters NONE Filters NONE Steam 0 RUN: 828b69b8-f463-41f0-bc10-b7050f337e21